[Event "36th European Club Cup 2021"]
[Site "Struga"]
[Date "2021.09.22"]
[Round "5.28"]
[White "Podlesnik, Bogdan"]
[Black "Thybo, Jesper Sondergaard"]
[Result "0-1"]
[ECO "B15"]
[WhiteElo "2327"]
[BlackElo "2587"]
[Annotator "ChessBase"]
[PlyCount "64"]
[EventDate "2021.09.18"]
[EventType "team-tourn"]
[EventCountry "MKD"]
[SourceTitle "playchess.com"]
[Source "ChessBase"]
[SourceQuality "1"]
[TimeControl "40/5400+30:1800+30"]

1. e4 {[%emt 0:00:05]} c6 {[%emt 0:00:11]} 2. d4 {[%emt 0:00:05]} d5 {[%emt 0:
00:07]} 3. Nc3 {[%emt 0:00:09]} dxe4 {[%emt 0:00:08]} 4. Nxe4 {[%emt 0:00:10]}
Nf6 {[%emt 0:00:16]} 5. Nxf6+ {[%emt 0:00:52]} exf6 {[%emt 0:00:21]} 6. Ne2 {
[%emt 0:01:16]} Bd6 {[%emt 0:01:03]} 7. Bf4 {[%emt 0:00:33]} Na6 {[%emt 0:01:
18]} 8. Qd2 {[%emt 0:05:16]} Nc7 {[%emt 0:02:38]} 9. O-O-O {[%emt 0:02:31]} Be6
{[%emt 0:00:31]} 10. Bxd6 {[%emt 0:03:04]} Qxd6 {[%emt 0:00:09]} 11. Qf4 {
[%emt 0:00:23]} O-O-O {[%emt 0:01:16]} 12. Qxd6 {[%emt 0:00:23]} Rxd6 {[%emt 0:
00:06]} 13. b3 {[%emt 0:12:36]} Rhd8 {[%emt 0:03:17]} 14. Re1 {[%emt 0:06:04]}
a5 {[%emt 0:18:52]} 15. Kb2 {[%emt 0:01:28]} b5 {[%emt 0:02:20]} 16. a3 {
[%emt 0:01:31]} a4 {[%emt 0:14:10]} 17. g3 {[%emt 0:06:56]} axb3 {[%emt 0:00:
44]} 18. cxb3 {[%emt 0:00:10]} Kb8 {[%emt 0:13:41]} 19. Rc1 {[%emt 0:07:08]}
Bd5 {[%emt 0:01:56]} 20. Rg1 {[%emt 0:01:00]} Bf3 {[%emt 0:00:57]} 21. Rc3 {
[%emt 0:00:42]} Bxe2 {[%emt 0:01:08]} 22. Bxe2 {[%emt 0:00:20]} Ne6 {[%emt 0:
00:06]} 23. Rgc1 {[%emt 0:04:25]} Nxd4 {[%emt 0:00:40]} 24. Bf1 {[%emt 0:00:17]
} g5 {[%emt 0:02:46]} 25. a4 {[%emt 0:00:18]} bxa4 {[%emt 0:01:03]} 26. bxa4 {
[%emt 0:00:16]} Kc7 {[%emt 0:04:37]} 27. Ra3 {[%emt 0:08:09]} Rd5 {[%emt 0:03:
22]} 28. f3 {[%emt 0:01:57]} Rf5 {[%emt 0:01:51]} 29. Rcc3 {[%emt 0:00:15]} g4
{[%emt 0:00:58]} 30. f4 {[%emt 0:03:10]} Rh5 {[%emt 0:00:22]} 31. a5 {[%emt 0:
01:18]} Rxh2+ {[%emt 0:01:04]} 32. Ka1 {[%emt 0:00:10]} Nb5 {[%emt 0:04:27]}
0-1

[Event "36th European Club Cup 2021"]
[Site "Struga"]
[Date "2021.09.22"]
[Round "5.29"]
[White "Rozentalis, Eduardas"]
[Black "Zlatkov, Anton"]
[Result "1/2-1/2"]
[ECO "B53"]
[WhiteElo "2509"]
[BlackElo "2132"]
[Annotator "ChessBase"]
[PlyCount "64"]
[EventDate "2021.09.18"]
[EventType "team-tourn"]
[EventCountry "MKD"]
[SourceTitle "playchess.com"]
[Source "ChessBase"]
[SourceQuality "1"]
[TimeControl "40/5400+30:1800+30"]

1. e4 {[%emt 0:00:03]} c5 {[%emt 0:00:05]} 2. Nf3 {[%emt 0:00:12]} d6 {[%emt 0:
00:11]} 3. d4 {[%emt 0:00:23]} cxd4 {[%emt 0:00:12]} 4. Qxd4 {[%emt 0:00:05]}
Nc6 {[%emt 0:00:26]} 5. Bb5 {[%emt 0:00:09]} Bd7 {[%emt 0:00:30]} 6. Bxc6 {
[%emt 0:00:19]} Bxc6 {[%emt 0:00:39]} 7. c4 {[%emt 0:00:14]} Nf6 {[%emt 0:01:
55]} 8. Nc3 {[%emt 0:00:51]} g6 {[%emt 0:04:07]} 9. O-O {[%emt 0:01:47]} Bg7 {
[%emt 0:00:55]} 10. Qd3 {[%emt 0:02:33]} O-O {[%emt 0:00:52]} 11. Nd4 {[%emt 0:
00:07]} Rc8 {[%emt 0:07:03]} 12. Rd1 {[%emt 0:10:36]} Qa5 {[%emt 0:08:37]} 13.
b3 {[%emt 0:03:19]} a6 {[%emt 0:02:02]} 14. Bb2 {[%emt 0:02:51]} Rfd8 {[%emt 0:
03:05]} 15. Qe2 {[%emt 0:27:45]} e6 {[%emt 0:07:58]} 16. Nxc6 {[%emt 0:03:29]}
bxc6 {[%emt 0:02:40]} 17. Na4 {[%emt 0:08:16]} Nh5 {[%emt 0:15:46]} 18. Bxg7 {
[%emt 0:02:46]} Nxg7 {[%emt 0:00:32]} 19. Rac1 {[%emt 0:06:57]} Qe5 {[%emt 0:
09:46]} 20. Nb6 {[%emt 0:11:42]} Rb8 {[%emt 0:02:18]} 21. c5 {[%emt 0:00:14]}
d5 {[%emt 0:01:36]} 22. Qxa6 {[%emt 0:04:55]} Qxe4 {[%emt 0:01:01]} 23. Qd3 {
[%emt 0:01:24]} Qxd3 {[%emt 0:05:08]} 24. Rxd3 {[%emt 0:00:01]} e5 {[%emt 0:01:
03]} 25. b4 {[%emt 0:00:04]} e4 {[%emt 0:04:09]} 26. Rdd1 {[%emt 0:00:49]} Ne6
{[%emt 0:01:04]} 27. b5 {[%emt 0:05:04]} Nxc5 {[%emt 0:05:45]} 28. Rxc5 {
[%emt 0:00:10]} Rxb6 {[%emt 0:00:17]} 29. bxc6 {[%emt 0:00:08]} Rc8 {[%emt 0:
00:29]} 30. g4 {[%emt 0:03:31]} Rbxc6 {[%emt 0:00:15]} 31. Rxc6 {[%emt 0:00:06]
} Rxc6 {[%emt 0:00:03]} 32. Rxd5 {[%emt 0:00:05]} Ra6 {[%emt 0:00:22]} 1/2-1/2

[Event "36th European Club Cup 2021"]
[Site "Struga"]
[Date "2021.09.22"]
[Round "5.33"]
[White "Boskovic, Drasko"]
[Black "Miladinovic, Igor"]
[Result "1/2-1/2"]
[ECO "B10"]
[WhiteElo "2457"]
[BlackElo "2536"]
[Annotator "ChessBase"]
[PlyCount "83"]
[EventDate "2021.09.18"]
[EventType "team-tourn"]
[EventCountry "MKD"]
[SourceTitle "playchess.com"]
[Source "ChessBase"]
[SourceQuality "1"]
[TimeControl "40/5400+30:1800+30"]

1. e4 {[%emt 0:00:03]} c6 {[%emt 0:00:08]} 2. Nf3 {[%emt 0:00:46]} d5 {[%emt 0:
00:18]} 3. exd5 {[%emt 0:00:05]} cxd5 {[%emt 0:00:09]} 4. Ne5 {[%emt 0:00:04]}
a6 {[%emt 0:00:31]} 5. d4 {[%emt 0:00:47]} g6 {[%emt 0:00:32]} 6. Bd3 {[%emt 0:
03:12]} Bg7 {[%emt 0:01:06]} 7. c3 {[%emt 0:06:28]} Nh6 {[%emt 0:01:24]} 8. O-O
{[%emt 0:00:20]} O-O {[%emt 0:00:15]} 9. Re1 {[%emt 0:01:31]} Nc6 {[%emt 0:03:
34]} 10. h3 {[%emt 0:02:21]} f6 {[%emt 0:03:46]} 11. Nf3 {[%emt 0:03:14]} e5 {
[%emt 0:02:10]} 12. c4 {[%emt 0:13:38]} Nxd4 {[%emt 0:15:46]} 13. Nxd4 {
[%emt 0:00:17]} exd4 {[%emt 0:00:06]} 14. c5 {[%emt 0:17:33]} Qa5 {[%emt 0:09:
52]} 15. b3 {[%emt 0:01:30]} Bd7 {[%emt 0:05:52]} 16. Ba3 {[%emt 0:00:07]} Rfe8
{[%emt 0:00:57]} 17. Rxe8+ {[%emt 0:00:58]} Rxe8 {[%emt 0:00:16]} 18. b4 {
[%emt 0:00:03]} Qc7 {[%emt 0:07:47]} 19. Nd2 {[%emt 0:00:44]} g5 {[%emt 0:09:
01]} 20. Qf3 {[%emt 0:09:28]} Qe5 {[%emt 0:05:08]} 21. Nf1 {[%emt 0:00:11]} g4
{[%emt 0:03:52]} 22. hxg4 {[%emt 0:00:10]} Bxg4 {[%emt 0:00:13]} 23. Qg3 {
[%emt 0:00:04]} Bf5 {[%emt 0:00:27]} 24. Rd1 {[%emt 0:01:18]} Be4 {[%emt 0:03:
26]} 25. Bb2 {[%emt 0:02:42]} Qh5 {[%emt 0:03:23]} 26. f3 {[%emt 0:04:30]} Nf5
{[%emt 0:03:25]} 27. Qh2 {[%emt 0:00:37]} Qxh2+ {[%emt 0:09:40]} 28. Kxh2 {
[%emt 0:00:06]} Bxd3 {[%emt 0:00:05]} 29. Rxd3 {[%emt 0:00:04]} Re2 {[%emt 0:
01:03]} 30. Bxd4 {[%emt 0:00:11]} Rxa2 {[%emt 0:00:50]} 31. Ne3 {[%emt 0:00:30]
} Ne7 {[%emt 0:01:23]} 32. Bc3 {[%emt 0:03:09]} Ra3 {[%emt 0:01:59]} 33. Nc2 {
[%emt 0:00:08]} Ra4 {[%emt 0:02:15]} 34. Ne3 {[%emt 0:00:21]} f5 {[%emt 0:01:
29]} 35. Bxg7 {[%emt 0:00:06]} Kxg7 {[%emt 0:00:04]} 36. Nxd5 {[%emt 0:00:07]}
Nxd5 {[%emt 0:00:08]} 37. Rxd5 {[%emt 0:00:05]} Rxb4 {[%emt 0:00:04]} 38. Rxf5
{[%emt 0:00:06]} a5 {[%emt 0:04:03]} 39. c6 {[%emt 0:00:29]} bxc6 {[%emt 0:00:
27]} 40. Rxa5 {[%emt 0:00:00]} Rb7 {[%emt 0:00:00]} 41. Kg3 {[%emt 0:00:10]}
Kf6 {[%emt 0:02:18]} 42. Kf4 {[%emt 1:03:17]} 1/2-1/2

[Event "36th European Club Cup 2021"]
[Site "Struga"]
[Date "2021.09.22"]
[Round "5.34"]
[White "Perunovic, Milos"]
[Black "Tadic, Stefan"]
[Result "1-0"]
[ECO "B36"]
[WhiteElo "2566"]
[BlackElo "2339"]
[Annotator "ChessBase"]
[PlyCount "67"]
[EventDate "2021.09.18"]
[EventType "team-tourn"]
[EventCountry "MKD"]
[SourceTitle "playchess.com"]
[Source "ChessBase"]
[SourceQuality "1"]
[TimeControl "40/5400+30:1800+30"]

1. e4 {[%emt 0:00:06]} c5 {[%emt 0:00:17]} 2. Nf3 {[%emt 0:00:32]} g6 {[%emt 0:
00:29]} 3. d4 {[%emt 0:02:11]} cxd4 {[%emt 0:00:06]} 4. Nxd4 {[%emt 0:00:05]}
Nc6 {[%emt 0:01:22]} 5. c4 {[%emt 0:00:55]} Nf6 {[%emt 0:01:06]} 6. Nc3 {
[%emt 0:00:08]} Nxd4 {[%emt 0:00:12]} 7. Qxd4 {[%emt 0:00:07]} d6 {[%emt 0:00:
05]} 8. Bg5 {[%emt 0:12:56]} Bg7 {[%emt 0:00:21]} 9. Qd2 {[%emt 0:00:07]} O-O {
[%emt 0:02:10]} 10. Bd3 {[%emt 0:00:38]} Be6 {[%emt 0:02:50]} 11. O-O {[%emt 0:
00:33]} Qa5 {[%emt 1:27:02]} 12. Rae1 {[%emt 0:24:33]} Rfc8 {[%emt 0:00:00]}
13. b3 {[%emt 0:00:51]} Nd7 {[%emt 0:00:00]} 14. Rc1 {[%emt 0:05:44]} Rc6 {
[%emt 0:00:00]} 15. f4 {[%emt 0:11:45]} Bd4+ {[%emt 0:00:00]} 16. Kh1 {[%emt 0:
00:05]} f6 {[%emt 0:00:00]} 17. Bh6 {[%emt 0:07:04]} Bf7 {[%emt 0:00:00]} 18.
Be2 {[%emt 0:01:31]} Bxc3 {[%emt 0:00:00]} 19. Rxc3 {[%emt 0:00:10]} b5 {
[%emt 0:00:00]} 20. e5 {[%emt 0:11:46]} bxc4 {[%emt 0:00:00]} 21. Bf3 {[%emt 0:
01:27]} d5 {[%emt 0:00:00]} 22. b4 {[%emt 0:01:12]} Qc7 {[%emt 0:00:00]} 23.
Bxd5 {[%emt 0:00:59]} Bxd5 {[%emt 0:00:00]} 24. Qxd5+ {[%emt 0:00:03]} e6 {
[%emt 0:00:00]} 25. Qf3 {[%emt 0:00:05]} Re8 {[%emt 0:00:00]} 26. h4 {[%emt 0:
06:52]} f5 {[%emt 0:00:00]} 27. h5 {[%emt 0:00:44]} Nb6 {[%emt 0:00:00]} 28.
Rd1 {[%emt 0:01:57]} Na4 {[%emt 0:03:04]} 29. Ra3 {[%emt 0:01:19]} c3 {[%emt 0:
01:24]} 30. Rxa4 {[%emt 0:00:24]} c2 {[%emt 0:00:08]} 31. Rc1 {[%emt 0:00:04]}
Rc3 {[%emt 0:01:40]} 32. Rxa7 {[%emt 0:00:43]} Qc6 {[%emt 0:02:50]} 33. Qxc6 {
[%emt 0:00:32]} Rxc6 {[%emt 0:00:04]} 34. Rg7+ {[%emt 0:00:09]} 1-0

[Event "36th European Club Cup 2021"]
[Site "Struga"]
[Date "2021.09.22"]
[Round "5.36"]
[White "Stankovic, Milos"]
[Black "Gjorgjieski, Dejan"]
[Result "1-0"]
[ECO "B09"]
[WhiteElo "2409"]
[BlackElo "2125"]
[Annotator "NA"]
[PlyCount "101"]
[EventDate "2021.09.18"]
[EventType "team-tourn"]
[EventCountry "MKD"]
[SourceTitle "playchess.com"]
[Source "ChessBase"]
[SourceQuality "1"]
[TimeControl "40/5400+30:1800+30"]

1. e4 {[%emt 0:01:07]} g6 {[%emt 0:01:09]} 2. d4 {[%emt 0:00:31]} Bg7 {[%emt 0:
00:05]} 3. Nc3 {[%emt 0:00:30]} d6 {[%emt 0:01:30]} 4. f4 {[%emt 0:00:41]} c6 {
[%emt 0:08:04]} 5. Nf3 {[%emt 0:04:22]} Nf6 {[%emt 0:08:21]} 6. Bd3 {[%emt 0:
02:22]} Na6 {[%emt 0:07:47]} 7. O-O {[%emt 0:06:02]} O-O {[%emt 0:02:41]} 8. e5
{[%emt 0:05:28]} Ne8 {[%emt 0:11:16]} 9. a3 {[%emt 0:06:06]} c5 {[%emt 0:08:38]
} 10. Be3 {[%emt 0:12:19]} cxd4 {[%emt 0:04:49]} 11. Bxd4 {[%emt 0:01:01]} d5 {
[%emt 0:16:04]} 12. Ng5 {[%emt 0:05:55]} h6 {[%emt 0:04:37]} 13. Nf3 {[%emt 0:
01:48]} Bf5 {[%emt 0:00:53]} 14. Bxf5 {[%emt 0:06:24]} gxf5 {[%emt 0:00:06]}
15. Qd3 {[%emt 0:00:18]} e6 {[%emt 0:00:25]} 16. Nb5 {[%emt 0:01:58]} b6 {
[%emt 0:02:03]} 17. b4 {[%emt 0:01:31]} Nac7 {[%emt 0:00:26]} 18. Nc3 {[%emt 0:
01:27]} Qd7 {[%emt 0:03:23]} 19. a4 {[%emt 0:02:54]} Qc6 {[%emt 0:00:53]} 20.
Nd1 {[%emt 0:00:50]} f6 {[%emt 0:02:55]} 21. Ne3 {[%emt 0:00:57]} fxe5 {
[%emt 0:00:57]} 22. fxe5 {[%emt 0:00:12]} Rf7 {[%emt 0:00:14]} 23. Nh4 {
[%emt 0:01:16]} Bf8 {[%emt 0:00:49]} 24. c3 {[%emt 0:00:49]} Be7 {[%emt 0:07:
01]} 25. Ng6 {[%emt 0:01:04]} Bg5 {[%emt 0:00:16]} 26. g4 {[%emt 0:04:18]} Ng7
{[%emt 0:00:13]} 27. gxf5 {[%emt 0:07:01]} Bxe3+ {[%emt 0:00:45]} 28. Qxe3 {
[%emt 0:00:13]} Nxf5 {[%emt 0:00:18]} 29. Rxf5 {[%emt 0:00:43]} exf5 {[%emt 0:
00:38]} 30. Qxh6 {[%emt 0:00:13]} Qxg6+ {[%emt 0:06:25]} 31. Qxg6+ {[%emt 0:00:
43]} Rg7 {[%emt 0:00:01]} 32. Qxg7+ {[%emt 0:01:31]} Kxg7 {[%emt 0:00:02]} 33.
a5 {[%emt 0:00:41]} b5 {[%emt 0:01:41]} 34. e6+ {[%emt 0:01:58]} Kg6 {[%emt 0:
00:49]} 35. Re1 {[%emt 0:00:13]} a6 {[%emt 0:00:11]} 36. Bb6 {[%emt 0:00:57]}
Ne8 {[%emt 0:00:45]} 37. Re5 {[%emt 0:00:10]} Rc8 {[%emt 0:00:17]} 38. Bd4 {
[%emt 0:00:56]} Nf6 {[%emt 0:00:53]} 39. e7 {[%emt 0:00:13]} Ne8 {[%emt 0:01:
05]} 40. Rxd5 {[%emt 0:00:00]} Kf7 {[%emt 0:00:00]} 41. Bc5 {[%emt 0:00:47]} f4
{[%emt 0:04:03]} 42. Rf5+ {[%emt 0:02:26]} Ke6 {[%emt 0:03:50]} 43. Rxf4 {
[%emt 0:00:06]} Rc6 {[%emt 0:00:45]} 44. h4 {[%emt 0:00:22]} Kd7 {[%emt 0:00:
42]} 45. Rd4+ {[%emt 0:00:14]} Ke6 {[%emt 0:01:55]} 46. h5 {[%emt 0:00:11]} Kf7
{[%emt 0:04:04]} 47. Rf4+ {[%emt 0:00:10]} Rf6 {[%emt 0:00:41]} 48. Rxf6+ {
[%emt 0:01:28]} Kxf6 {[%emt 0:03:04]} 49. h6 {[%emt 0:00:21]} Kg6 {[%emt 0:00:
22]} 50. Be3 {[%emt 0:00:08]} Kf7 {[%emt 0:00:54]} 51. Bg5 {[%emt 0:00:30]} 1-0

[Event "36th European Club Cup 2021"]
[Site "Struga"]
[Date "2021.09.22"]
[Round "5.39"]
[White "Suleymanli, Aydin"]
[Black "Vaisser, Anatoly"]
[Result "1/2-1/2"]
[ECO "A85"]
[WhiteElo "2536"]
[BlackElo "2494"]
[Annotator "ChessBase"]
[PlyCount "60"]
[EventDate "2021.09.18"]
[EventType "team-tourn"]
[EventCountry "MKD"]
[SourceTitle "playchess.com"]
[Source "ChessBase"]
[SourceQuality "1"]
[TimeControl "40/5400+30:1800+30"]

1. d4 {[%emt 0:00:03]} e6 {[%emt 0:00:20]} 2. c4 {[%emt 0:00:15]} f5 {[%emt 0:
00:33]} 3. Nc3 {[%emt 0:00:21]} Nf6 {[%emt 0:00:19]} 4. e3 {[%emt 0:00:47]} b6
{[%emt 0:00:52]} 5. Bd3 {[%emt 0:00:20]} Bb7 {[%emt 0:00:09]} 6. f3 {[%emt 0:
00:08]} c5 {[%emt 0:02:19]} 7. d5 {[%emt 0:01:09]} exd5 {[%emt 0:01:18]} 8.
cxd5 {[%emt 0:00:34]} Nxd5 {[%emt 0:01:43]} 9. Nxd5 {[%emt 0:01:26]} Bxd5 {
[%emt 0:00:04]} 10. Bxf5 {[%emt 0:00:10]} Bf7 {[%emt 0:09:32]} 11. Qa4 {
[%emt 0:03:54]} Nc6 {[%emt 0:01:39]} 12. Bd2 {[%emt 0:03:15]} Qf6 {[%emt 0:09:
34]} 13. Qe4+ {[%emt 0:02:20]} Be7 {[%emt 0:01:55]} 14. Bc3 {[%emt 0:04:04]}
Qh4+ {[%emt 0:03:55]} 15. Qxh4 {[%emt 0:00:40]} Bxh4+ {[%emt 0:00:04]} 16. g3 {
[%emt 0:00:10]} Bf6 {[%emt 0:00:19]} 17. Bxf6 {[%emt 0:00:33]} gxf6 {[%emt 0:
00:03]} 18. O-O-O {[%emt 0:04:29]} Rd8 {[%emt 0:03:39]} 19. Kb1 {[%emt 0:04:16]
} d5 {[%emt 0:03:48]} 20. f4 {[%emt 0:03:32]} O-O {[%emt 0:05:25]} 21. Nf3 {
[%emt 0:00:12]} Rfe8 {[%emt 0:00:57]} 22. Rhe1 {[%emt 0:00:05]} Ne7 {[%emt 0:
05:38]} 23. Bd3 {[%emt 0:01:54]} Bg6 {[%emt 0:00:54]} 24. Bxg6 {[%emt 0:04:58]}
hxg6 {[%emt 0:00:52]} 25. e4 {[%emt 0:00:29]} dxe4 {[%emt 0:01:05]} 26. Rxd8 {
[%emt 0:02:29]} Rxd8 {[%emt 0:00:03]} 27. Rxe4 {[%emt 0:00:14]} Kf7 {[%emt 0:
00:21]} 28. Kc2 {[%emt 0:00:06]} Nc6 {[%emt 0:03:14]} 29. a3 {[%emt 0:00:29]}
b5 {[%emt 0:01:25]} 30. Re2 {[%emt 0:02:21]} Nd4+ {[%emt 0:43:31]} 1/2-1/2

[Event "36th European Club Cup 2021"]
[Site "Struga"]
[Date "2021.09.22"]
[Round "5.40"]
[White "Olivier, Pierre"]
[Black "Sadikhov, Ulvi"]
[Result "0-1"]
[ECO "E91"]
[WhiteElo "2215"]
[BlackElo "2509"]
[Annotator "ChessBase"]
[PlyCount "72"]
[EventDate "2021.09.18"]
[EventType "team-tourn"]
[EventCountry "MKD"]
[SourceTitle "playchess.com"]
[Source "ChessBase"]
[SourceQuality "1"]
[TimeControl "40/5400+30:1800+30"]

1. Nf3 {[%emt 0:00:03]} g6 {[%emt 0:00:08]} 2. d4 {[%emt 0:03:53]} Bg7 {
[%emt 0:00:11]} 3. c4 {[%emt 0:00:27]} d6 {[%emt 0:00:04]} 4. Nc3 {[%emt 0:00:
24]} Nf6 {[%emt 0:00:39]} 5. e4 {[%emt 0:01:33]} Bg4 {[%emt 0:00:14]} 6. Be2 {
[%emt 0:01:01]} Nfd7 {[%emt 0:00:06]} 7. Be3 {[%emt 0:02:15]} O-O {[%emt 0:00:
21]} 8. O-O {[%emt 0:02:06]} Nc6 {[%emt 0:00:15]} 9. d5 {[%emt 0:01:42]} Bxf3 {
[%emt 0:00:11]} 10. Bxf3 {[%emt 0:00:23]} Na5 {[%emt 0:00:15]} 11. Be2 {
[%emt 0:01:00]} Bxc3 {[%emt 0:00:15]} 12. bxc3 {[%emt 0:00:13]} e5 {[%emt 0:00:
05]} 13. dxe6 {[%emt 0:02:12]} fxe6 {[%emt 0:00:05]} 14. f4 {[%emt 0:02:28]} b6
{[%emt 0:00:06]} 15. f5 {[%emt 0:07:18]} Qe7 {[%emt 0:01:52]} 16. Bh6 {[%emt 0:
07:11]} Rf7 {[%emt 0:02:37]} 17. fxg6 {[%emt 0:04:22]} Rxf1+ {[%emt 0:15:46]}
18. Qxf1 {[%emt 0:03:13]} hxg6 {[%emt 0:00:06]} 19. Qf4 {[%emt 0:03:19]} Ne5 {
[%emt 0:18:18]} 20. Qg3 {[%emt 0:22:25]} Qh7 {[%emt 0:01:28]} 21. Bf4 {[%emt 0:
08:42]} Naxc4 {[%emt 0:00:44]} 22. Bd1 {[%emt 0:08:59]} b5 {[%emt 0:11:43]} 23.
Bb3 {[%emt 0:00:42]} Rf8 {[%emt 0:09:03]} 24. Bxe5 {[%emt 0:02:53]} Nxe5 {
[%emt 0:00:13]} 25. Bxe6+ {[%emt 0:00:07]} Kg7 {[%emt 0:00:22]} 26. Qe3 {
[%emt 0:08:11]} Rf6 {[%emt 0:00:31]} 27. Bh3 {[%emt 0:03:20]} c5 {[%emt 0:02:
13]} 28. a4 {[%emt 0:01:50]} bxa4 {[%emt 0:00:58]} 29. Rxa4 {[%emt 0:00:09]}
Kg8 {[%emt 0:00:19]} 30. Ra1 {[%emt 0:00:50]} Qf7 {[%emt 0:01:41]} 31. Rb1 {
[%emt 0:00:56]} Qa2 {[%emt 0:05:39]} 32. Rd1 {[%emt 0:01:01]} Nc4 {[%emt 0:05:
39]} 33. Qg3 {[%emt 0:00:19]} Qc2 {[%emt 0:05:38]} 34. Re1 {[%emt 0:00:03]} Ne5
{[%emt 0:00:48]} 35. Bc8 {[%emt 0:00:49]} Nd3 {[%emt 0:01:09]} 36. Ra1 {
[%emt 0:00:25]} Qxc3 {[%emt 0:00:16]} 0-1

[Event "36th European Club Cup 2021"]
[Site "Struga"]
[Date "2021.09.22"]
[Round "5.41"]
[White "Ahmadzada, Ahmad"]
[Black "Kirszenberg, Marc"]
[Result "1-0"]
[ECO "B10"]
[WhiteElo "2462"]
[BlackElo "2139"]
[Annotator "ChessBase"]
[PlyCount "51"]
[EventDate "2021.09.18"]
[EventType "team-tourn"]
[EventCountry "MKD"]
[SourceTitle "playchess.com"]
[Source "ChessBase"]
[SourceQuality "1"]
[TimeControl "40/5400+30:1800+30"]

1. e4 {[%emt 0:00:05]} c6 {[%emt 0:00:01]} 2. d3 {[%emt 0:00:25]} d5 {[%emt 0:
00:14]} 3. Nd2 {[%emt 0:00:07]} e5 {[%emt 0:00:08]} 4. Ngf3 {[%emt 0:00:08]}
Bd6 {[%emt 0:00:06]} 5. d4 {[%emt 0:00:10]} exd4 {[%emt 0:00:58]} 6. Bd3 {
[%emt 0:00:08]} Ne7 {[%emt 0:04:05]} 7. O-O {[%emt 0:00:16]} O-O {[%emt 0:01:
07]} 8. e5 {[%emt 0:05:19]} Bc7 {[%emt 0:02:03]} 9. Nb3 {[%emt 0:00:08]} h6 {
[%emt 0:13:03]} 10. Re1 {[%emt 0:00:38]} Nd7 {[%emt 0:01:55]} 11. Nbxd4 {
[%emt 0:15:19]} Nc5 {[%emt 0:01:36]} 12. h3 {[%emt 0:13:40]} Nxd3 {[%emt 0:04:
08]} 13. Qxd3 {[%emt 0:00:24]} c5 {[%emt 0:00:50]} 14. Nb5 {[%emt 0:01:46]} Bf5
{[%emt 0:00:55]} 15. Qd1 {[%emt 0:04:16]} d4 {[%emt 0:13:32]} 16. Nh4 {[%emt 0:
11:53]} Be6 {[%emt 0:09:00]} 17. Nxc7 {[%emt 0:01:23]} Qxc7 {[%emt 0:00:19]}
18. Qh5 {[%emt 0:07:34]} Kh7 {[%emt 0:12:53]} 19. f4 {[%emt 0:03:33]} g6 {
[%emt 0:02:05]} 20. Qe2 {[%emt 0:01:59]} f5 {[%emt 0:17:30]} 21. exf6 {[%emt 0:
00:43]} Rxf6 {[%emt 0:00:04]} 22. g4 {[%emt 0:06:14]} Raf8 {[%emt 0:04:23]} 23.
g5 {[%emt 0:03:20]} hxg5 {[%emt 0:00:15]} 24. Nf3 {[%emt 0:00:10]} Rxf4 {
[%emt 0:07:52]} 25. Nxg5+ {[%emt 0:00:55]} Kh8 {[%emt 0:00:33]} 26. Bxf4 {
[%emt 0:01:06]} 1-0

[Event "36th European Club Cup 2021"]
[Site "Struga"]
[Date "2021.09.22"]
[Round "5.42"]
[White "Moingt, Jean-Claude"]
[Black "Ibrahimli, Murad"]
[Result "0-1"]
[ECO "B51"]
[WhiteElo "2125"]
[BlackElo "2436"]
[Annotator "NA"]
[PlyCount "90"]
[EventDate "2021.09.18"]
[EventType "team-tourn"]
[EventCountry "MKD"]
[SourceTitle "playchess.com"]
[Source "ChessBase"]
[SourceQuality "1"]
[TimeControl "40/5400+30:1800+30"]

1. e4 {[%emt 0:00:22]} c5 {[%emt 0:00:09]} 2. Nf3 {[%emt 0:00:18]} d6 {[%emt 0:
00:06]} 3. Bb5+ {[%emt 0:01:44]} Nd7 {[%emt 0:00:49]} 4. Ba4 {[%emt 0:00:08]}
Ngf6 {[%emt 0:00:33]} 5. O-O {[%emt 0:00:25]} a6 {[%emt 0:02:25]} 6. c4 {
[%emt 0:08:27]} g6 {[%emt 0:06:35]} 7. Nc3 {[%emt 0:03:23]} Bg7 {[%emt 0:00:14]
} 8. d4 {[%emt 0:08:49]} cxd4 {[%emt 0:00:14]} 9. Nxd4 {[%emt 0:00:10]} O-O {
[%emt 0:00:07]} 10. Bc2 {[%emt 0:03:15]} Ne5 {[%emt 0:01:02]} 11. b3 {[%emt 0:
00:20]} Bd7 {[%emt 0:03:28]} 12. Bb2 {[%emt 0:06:27]} Qb6 {[%emt 0:01:24]} 13.
Rb1 {[%emt 0:06:43]} Nc6 {[%emt 0:00:56]} 14. Nxc6 {[%emt 0:03:29]} Bxc6 {
[%emt 0:00:26]} 15. Nd5 {[%emt 0:00:54]} Bxd5 {[%emt 0:00:29]} 16. exd5 {
[%emt 0:00:16]} Nd7 {[%emt 0:00:32]} 17. Bxg7 {[%emt 0:00:31]} Kxg7 {[%emt 0:
00:05]} 18. Qd2 {[%emt 0:02:23]} a5 {[%emt 0:05:24]} 19. Rbe1 {[%emt 0:00:49]}
Rae8 {[%emt 0:05:24]} 20. Kh1 {[%emt 0:04:12]} Nf6 {[%emt 0:01:34]} 21. f4 {
[%emt 0:03:42]} e6 {[%emt 0:03:22]} 22. dxe6 {[%emt 0:21:19]} Rxe6 {[%emt 0:00:
25]} 23. f5 {[%emt 0:00:54]} Rxe1 {[%emt 0:00:08]} 24. Rxe1 {[%emt 0:00:13]}
Qc5 {[%emt 0:02:52]} 25. Qe3 {[%emt 0:05:02]} Qb4 {[%emt 0:03:08]} 26. Rf1 {
[%emt 0:01:19]} Re8 {[%emt 0:00:08]} 27. Qf3 {[%emt 0:00:45]} g5 {[%emt 0:00:
31]} 28. h3 {[%emt 0:01:02]} h6 {[%emt 0:01:21]} 29. Rd1 {[%emt 0:00:46]} Qc5 {
[%emt 0:01:02]} 30. Qd3 {[%emt 0:03:45]} Re3 {[%emt 0:02:04]} 31. Qd4 {[%emt 0:
01:29]} Re2 {[%emt 0:02:40]} 32. Qxc5 {[%emt 0:06:03]} dxc5 {[%emt 0:01:07]}
33. Rc1 {[%emt 0:01:01]} Nh5 {[%emt 0:00:14]} 34. Bd1 {[%emt 0:00:55]} Re1+ {
[%emt 0:00:10]} 35. Kh2 {[%emt 0:00:04]} Nf4 {[%emt 0:00:09]} 36. Rb1 {[%emt 0:
01:06]} Kf6 {[%emt 0:00:21]} 37. Kg3 {[%emt 0:01:03]} Rg1 {[%emt 0:00:26]} 38.
a3 {[%emt 0:00:35]} Rxg2+ {[%emt 0:00:09]} 39. Kf3 {[%emt 0:00:01]} Ra2 {
[%emt 0:00:10]} 40. h4 {[%emt 0:00:00]} Rxa3 {[%emt 0:00:00]} 41. hxg5+ {
[%emt 0:00:36]} hxg5 {[%emt 0:00:16]} 42. Bc2 {[%emt 0:00:11]} Ra2 {[%emt 0:00:
19]} 43. Be4 {[%emt 0:00:08]} b6 {[%emt 0:00:05]} 44. Rd1 {[%emt 0:00:04]} Rb2
{[%emt 0:00:18]} 45. Rd6+ {[%emt 0:00:22]} Ke5 {[%emt 0:00:04]} 0-1